[Event "Titled Tuesday Blitz August 15 Early 2023"]
[White "Weetik, Vjacheslav"]
[Black "Ansh M Shah"]
[WhiteFideId "4153472"]
[BlackFideId "25033379"]
[WhiteElo "2736"]
[BlackElo "2526"]
[Result "1-0"]
[Round "4"]
[TimeControl "180+1"]
[Date "2023.08.15"]
[WhiteClock "0:00:03"]
[BlackClock "0:00:00"]
[Board "66"]

1. c4 {[%clk 0:02:59]}  Nf6 {[%clk 0:02:59]} 2. Nc3 {[%clk 0:02:59]}  c5 {[%clk 0:02:59]} 3. g3 {[%clk 0:02:58]}  Nc6 {[%clk 0:02:59]} 4. Bg2 {[%clk 0:02:58]}  g6 {[%clk 0:03:00]} 5. Nf3 {[%clk 0:02:51]}  Bg7 {[%clk 0:03:00]} 6. O-O {[%clk 0:02:51]}  O-O {[%clk 0:03:01]} 7. d4 {[%clk 0:02:49]}  cxd4 {[%clk 0:03:02]} 8. Nxd4 {[%clk 0:02:49]}  Nxd4 {[%clk 0:03:03]} 9. Qxd4 {[%clk 0:02:48]}  d6 {[%clk 0:03:04]} 10. Qd2 {[%clk 0:02:47]}  Rb8 {[%clk 0:03:03]} 11. b3 {[%clk 0:02:44]}  a6 {[%clk 0:03:03]} 12. a4 {[%clk 0:02:36]}  Nd7 {[%clk 0:02:51]} 13. a5 {[%clk 0:02:04]}  Nc5 {[%clk 0:02:41]} 14. Rb1 {[%clk 0:02:03]}  b6 {[%clk 0:02:06]} 15. axb6 {[%clk 0:01:53]}  Rxb6 {[%clk 0:01:58]} 16. b4 {[%clk 0:01:51]}  Bf5 {[%clk 0:01:32]} 17. e4 {[%clk 0:01:12]}  Bxc3 {[%clk 0:00:54]} 18. Qxc3 {[%clk 0:01:12]}  Nxe4 {[%clk 0:00:50]} 19. Bxe4 {[%clk 0:01:09]}  Bxe4 {[%clk 0:00:51]} 20. Bh6 {[%clk 0:01:09]}  f6 {[%clk 0:00:40]} 21. Rbe1 {[%clk 0:01:08]}  Bf5 {[%clk 0:00:34]} 22. Bxf8 {[%clk 0:01:06]}  Qxf8 {[%clk 0:00:35]} 23. c5 {[%clk 0:01:01]}  dxc5 {[%clk 0:00:35]} 24. bxc5 {[%clk 0:00:53]}  Rc6 {[%clk 0:00:35]} 25. Rc1 {[%clk 0:00:49]}  e5 {[%clk 0:00:32]} 26. Rfd1 {[%clk 0:00:49]}  Bh3 {[%clk 0:00:29]} 27. Qa5 {[%clk 0:00:45]}  Kg7 {[%clk 0:00:17]} 28. Qd8 {[%clk 0:00:37]}  Qf7 {[%clk 0:00:13]} 29. Rd6 {[%clk 0:00:35]}  Qb7 {[%clk 0:00:11]} 30. Qxf6+ {[%clk 0:00:04]}  Kh6 {[%clk 0:00:00]} 31. Rxc6 {[%clk 0:00:03]} 1-0


[Site "https://www.chess.com"]

[Event "Titled Tuesday Blitz August 15 Early 2023"]
[White "Zhao, Jun"]
[Black "Degenbaev, Aziz"]
[WhiteFideId "8602522"]
[BlackFideId "13802640"]
[WhiteElo "2723"]
[BlackElo "2523"]
[Result "0-1"]
[Round "4"]
[TimeControl "180+1"]
[Date "2023.08.15"]
[WhiteClock "0:00:00"]
[BlackClock "0:00:07"]
[Board "68"]

1. e4 {[%clk 0:02:53]}  c5 {[%clk 0:02:58]} 2. Nf3 {[%clk 0:02:53]}  d6 {[%clk 0:02:58]} 3. d4 {[%clk 0:02:53]}  cxd4 {[%clk 0:02:59]} 4. Nxd4 {[%clk 0:02:53]}  Nf6 {[%clk 0:03:00]} 5. Nc3 {[%clk 0:02:54]}  a6 {[%clk 0:03:00]} 6. Bg5 {[%clk 0:02:54]}  e6 {[%clk 0:02:56]} 7. Qe2 {[%clk 0:02:43]}  Be7 {[%clk 0:02:47]} 8. O-O-O {[%clk 0:02:42]}  Nxe4 {[%clk 0:02:14]} 9. Nxe4 {[%clk 0:02:41]}  Bxg5+ {[%clk 0:02:14]} 10. Kb1 {[%clk 0:02:39]}  O-O {[%clk 0:02:04]} 11. Qh5 {[%clk 0:02:25]}  Be7 {[%clk 0:01:56]} 12. Bd3 {[%clk 0:02:25]}  f5 {[%clk 0:01:20]} 13. Rhe1 {[%clk 0:01:59]}  Nc6 {[%clk 0:01:08]} 14. Nf3 {[%clk 0:01:33]}  Qe8 {[%clk 0:00:56]} 15. Qxe8 {[%clk 0:01:28]}  Rxe8 {[%clk 0:00:55]} 16. Nc3 {[%clk 0:01:25]}  b5 {[%clk 0:00:39]} 17. a4 {[%clk 0:01:23]}  b4 {[%clk 0:00:36]} 18. Ne2 {[%clk 0:01:22]}  d5 {[%clk 0:00:31]} 19. Ned4 {[%clk 0:01:20]}  Nxd4 {[%clk 0:00:29]} 20. Nxd4 {[%clk 0:01:21]}  Kf7 {[%clk 0:00:28]} 21. a5 {[%clk 0:01:12]}  Bd7 {[%clk 0:00:25]} 22. f4 {[%clk 0:01:07]}  Bf6 {[%clk 0:00:24]} 23. Nf3 {[%clk 0:01:06]}  Rec8 {[%clk 0:00:18]} 24. Ne5+ {[%clk 0:00:51]}  Bxe5 {[%clk 0:00:18]} 25. Rxe5 {[%clk 0:00:51]}  Rc5 {[%clk 0:00:19]} 26. g4 {[%clk 0:00:49]}  g6 {[%clk 0:00:17]} 27. h4 {[%clk 0:00:49]}  Rxa5 {[%clk 0:00:17]} 28. h5 {[%clk 0:00:48]}  Rc5 {[%clk 0:00:16]} 29. Rh1 {[%clk 0:00:46]}  Kg7 {[%clk 0:00:09]} 30. Re2 {[%clk 0:00:40]}  Rf8 {[%clk 0:00:07]} 31. hxg6 {[%clk 0:00:36]}  hxg6 {[%clk 0:00:07]} 32. Reh2 {[%clk 0:00:36]}  Rf7 {[%clk 0:00:06]} 33. Rh8 {[%clk 0:00:17]}  Rc8 {[%clk 0:00:05]} 34. R1h7+ {[%clk 0:00:17]}  Kf6 {[%clk 0:00:05]} 35. g5+ {[%clk 0:00:16]}  Ke7 {[%clk 0:00:05]} 36. Rxf7+ {[%clk 0:00:09]}  Kxf7 {[%clk 0:00:05]} 37. Rh7+ {[%clk 0:00:10]}  Ke8 {[%clk 0:00:06]} 38. Rg7 {[%clk 0:00:09]}  Bb5 {[%clk 0:00:04]} 39. Rxg6 {[%clk 0:00:04]}  Kf7 {[%clk 0:00:03]} 40. Rf6+ {[%clk 0:00:03]}  Ke7 {[%clk 0:00:04]} 41. Rg6 {[%clk 0:00:02]}  Bxd3 {[%clk 0:00:03]} 42. cxd3 {[%clk 0:00:03]}  Rh8 {[%clk 0:00:03]} 43. Rg7+ {[%clk 0:00:03]}  Kd6 {[%clk 0:00:04]} 44. Kc2 {[%clk 0:00:03]}  Rh4 {[%clk 0:00:04]} 45. Ra7 {[%clk 0:00:02]}  Rxf4 {[%clk 0:00:05]} 46. Rxa6+ {[%clk 0:00:03]}  Ke5 {[%clk 0:00:05]} 47. g6 {[%clk 0:00:02]}  Rg4 {[%clk 0:00:06]} 48. d4+ {[%clk 0:00:02]}  Kf6 {[%clk 0:00:05]} 49. Rb6 {[%clk 0:00:02]}  Rxd4 {[%clk 0:00:04]} 50. Kb3 {[%clk 0:00:02]}  Kxg6 {[%clk 0:00:04]} 51. Rxe6+ {[%clk 0:00:01]}  Kg5 {[%clk 0:00:04]} 52. Re8 {[%clk 0:00:01]}  f4 {[%clk 0:00:04]} 53. Rf8 {[%clk 0:00:01]}  Kg4 {[%clk 0:00:05]} 54. Kc2 {[%clk 0:00:01]}  f3 {[%clk 0:00:05]} 55. Rg8+ {[%clk 0:00:02]}  Kf4 {[%clk 0:00:05]} 56. Rf8+ {[%clk 0:00:02]}  Kg3 {[%clk 0:00:06]} 57. Rg8+ {[%clk 0:00:02]}  Rg4 {[%clk 0:00:06]} 58. Rd8 {[%clk 0:00:00]}  f2 {[%clk 0:00:07]} 0-1


[Site "https://www.chess.com"]

[Event "Titled Tuesday Blitz August 15 Early 2023"]
[White "Bach Ngoc Thuy Duong"]
[Black "Wong, Yinn Long"]
[WhiteFideId "12408956"]
[BlackFideId "5707684"]
[WhiteElo "2522"]
[BlackElo "2722"]
[Result "0-1"]
[Round "4"]
[TimeControl "180+1"]
[Date "2023.08.15"]
[WhiteClock "0:00:00"]
[BlackClock "0:00:43"]
[Board "69"]

1. d4 {[%clk 0:03:00]}  Nf6 {[%clk 0:02:59]} 2. c4 {[%clk 0:02:59]}  e6 {[%clk 0:02:59]} 3. Nc3 {[%clk 0:02:58]}  Bb4 {[%clk 0:02:57]} 4. Qc2 {[%clk 0:02:57]}  Nc6 {[%clk 0:02:57]} 5. Nf3 {[%clk 0:02:57]}  d6 {[%clk 0:02:58]} 6. a3 {[%clk 0:02:49]}  Bxc3+ {[%clk 0:02:58]} 7. bxc3 {[%clk 0:02:49]}  e5 {[%clk 0:02:51]} 8. d5 {[%clk 0:02:40]}  Nb8 {[%clk 0:02:42]} 9. e4 {[%clk 0:02:38]}  Nbd7 {[%clk 0:02:38]} 10. Be3 {[%clk 0:02:25]}  h6 {[%clk 0:02:33]} 11. h3 {[%clk 0:02:25]}  b6 {[%clk 0:02:32]} 12. Be2 {[%clk 0:02:24]}  a5 {[%clk 0:02:32]} 13. O-O {[%clk 0:02:22]}  Nf8 {[%clk 0:02:32]} 14. Nd2 {[%clk 0:02:16]}  g5 {[%clk 0:02:31]} 15. Rfe1 {[%clk 0:01:50]}  Ng6 {[%clk 0:02:31]} 16. Bf1 {[%clk 0:01:48]}  g4 {[%clk 0:02:22]} 17. f4 {[%clk 0:01:11]}  exf4 {[%clk 0:02:13]} 18. Bd4 {[%clk 0:01:11]}  Ne5 {[%clk 0:02:10]} 19. hxg4 {[%clk 0:01:06]}  Bxg4 {[%clk 0:02:10]} 20. Be2 {[%clk 0:00:56]}  Bxe2 {[%clk 0:01:56]} 21. Rxe2 {[%clk 0:00:56]}  Nfg4 {[%clk 0:01:57]} 22. Nf3 {[%clk 0:00:56]}  Rg8 {[%clk 0:01:56]} 23. Kf1 {[%clk 0:00:35]}  Kf8 {[%clk 0:01:45]} 24. Qd2 {[%clk 0:00:17]}  Qf6 {[%clk 0:01:12]} 25. Qc1 {[%clk 0:00:07]}  Re8 {[%clk 0:01:04]} 26. Rb1 {[%clk 0:00:06]}  h5 {[%clk 0:01:02]} 27. Rbb2 {[%clk 0:00:03]}  Qh6 {[%clk 0:01:01]} 28. Qe1 {[%clk 0:00:02]}  Nd3 {[%clk 0:00:50]} 29. Qh4 {[%clk 0:00:01]}  Nxb2 {[%clk 0:00:49]} 30. Rxb2 {[%clk 0:00:02]}  Ne3+ {[%clk 0:00:45]} 31. Ke1 {[%clk 0:00:00]}  Nxg2+ {[%clk 0:00:43]} 0-1


[Site "https://www.chess.com"]

[Event "Titled Tuesday Blitz August 15 Early 2023"]
[White "Leiva, Gianmarco"]
[Black "Lima, Kleyton Alcantara"]
[WhiteFideId "3804399"]
[BlackFideId "22718397"]
[WhiteElo "2721"]
[BlackElo "2521"]
[Result "1/2-1/2"]
[Round "4"]
[TimeControl "180+1"]
[Date "2023.08.15"]
[WhiteClock "0:00:04"]
[BlackClock "0:00:20"]
[Board "70"]

1. e4 {[%clk 0:03:00]}  c5 {[%clk 0:02:59]} 2. Nf3 {[%clk 0:03:00]}  d6 {[%clk 0:03:00]} 3. Bb5+ {[%clk 0:02:54]}  Bd7 {[%clk 0:02:59]} 4. a4 {[%clk 0:02:50]}  Nf6 {[%clk 0:02:58]} 5. d3 {[%clk 0:02:49]}  g6 {[%clk 0:02:58]} 6. O-O {[%clk 0:02:49]}  Bg7 {[%clk 0:02:58]} 7. h3 {[%clk 0:02:47]}  O-O {[%clk 0:02:58]} 8. Re1 {[%clk 0:02:47]}  a6 {[%clk 0:02:58]} 9. Bxd7 {[%clk 0:02:45]}  Nbxd7 {[%clk 0:02:58]} 10. Nc3 {[%clk 0:02:42]}  Rc8 {[%clk 0:02:53]} 11. Be3 {[%clk 0:02:33]}  h6 {[%clk 0:02:53]} 12. Qd2 {[%clk 0:02:33]}  Kh7 {[%clk 0:02:53]} 13. Bf4 {[%clk 0:02:29]}  Nb8 {[%clk 0:02:44]} 14. e5 {[%clk 0:02:28]}  dxe5 {[%clk 0:02:43]} 15. Nxe5 {[%clk 0:02:28]}  Nc6 {[%clk 0:02:41]} 16. Nxc6 {[%clk 0:02:26]}  Rxc6 {[%clk 0:02:42]} 17. Qe2 {[%clk 0:02:26]}  e6 {[%clk 0:02:39]} 18. Be5 {[%clk 0:02:25]}  Nd5 {[%clk 0:02:34]} 19. Bxg7 {[%clk 0:02:24]}  Kxg7 {[%clk 0:02:35]} 20. Qe5+ {[%clk 0:02:23]}  Qf6 {[%clk 0:02:20]} 21. Nxd5 {[%clk 0:02:10]}  exd5 {[%clk 0:02:06]} 22. Qxd5 {[%clk 0:01:55]}  Qxb2 {[%clk 0:02:05]} 23. Rab1 {[%clk 0:01:56]}  Qxc2 {[%clk 0:02:02]} 24. Rxb7 {[%clk 0:01:56]}  Rf6 {[%clk 0:02:01]} 25. f3 {[%clk 0:01:52]}  Qxa4 {[%clk 0:01:49]} 26. Qxc5 {[%clk 0:01:47]}  Re8 {[%clk 0:01:39]} 27. Rxe8 {[%clk 0:01:31]}  Qxe8 {[%clk 0:01:40]} 28. Qd4 {[%clk 0:01:05]}  Qe6 {[%clk 0:01:37]} 29. Rd7 {[%clk 0:00:58]}  Qb6 {[%clk 0:01:23]} 30. Kf2 {[%clk 0:00:43]}  Qxd4+ {[%clk 0:01:20]} 31. Rxd4 {[%clk 0:00:44]}  Rb6 {[%clk 0:01:20]} 32. Ke3 {[%clk 0:00:44]}  Rb2 {[%clk 0:01:17]} 33. g3 {[%clk 0:00:42]}  Ra2 {[%clk 0:01:12]} 34. h4 {[%clk 0:00:38]}  h5 {[%clk 0:01:12]} 35. Kf4 {[%clk 0:00:35]}  a5 {[%clk 0:01:07]} 36. Rd7 {[%clk 0:00:34]}  a4 {[%clk 0:01:05]} 37. Ra7 {[%clk 0:00:33]}  a3 {[%clk 0:01:05]} 38. d4 {[%clk 0:00:25]}  Ra1 {[%clk 0:01:04]} 39. d5 {[%clk 0:00:26]}  a2 {[%clk 0:01:03]} 40. d6 {[%clk 0:00:20]}  Rd1 {[%clk 0:00:58]} 41. Rxa2 {[%clk 0:00:19]}  Rxd6 {[%clk 0:00:58]} 42. Ra4 {[%clk 0:00:19]}  Rf6+ {[%clk 0:00:57]} 43. Ke3 {[%clk 0:00:18]}  Re6+ {[%clk 0:00:58]} 44. Kf2 {[%clk 0:00:19]}  Rc6 {[%clk 0:00:57]} 45. Ra2 {[%clk 0:00:18]}  Rb6 {[%clk 0:00:57]} 46. Kg2 {[%clk 0:00:17]}  Rc6 {[%clk 0:00:58]} 47. Kh3 {[%clk 0:00:16]}  Rc3 {[%clk 0:00:57]} 48. Kg2 {[%clk 0:00:16]}  Rc6 {[%clk 0:00:57]} 49. Rf2 {[%clk 0:00:16]}  Rc3 {[%clk 0:00:57]} 50. Kh3 {[%clk 0:00:16]}  Rb3 {[%clk 0:00:57]} 51. Kg2 {[%clk 0:00:14]}  Rc3 {[%clk 0:00:57]} 52. Rd2 {[%clk 0:00:15]}  Ra3 {[%clk 0:00:57]} 53. Kf2 {[%clk 0:00:15]}  Rb3 {[%clk 0:00:57]} 54. Rc2 {[%clk 0:00:15]}  Ra3 {[%clk 0:00:58]} 55. Rb2 {[%clk 0:00:15]}  Rc3 {[%clk 0:00:58]} 56. Ke2 {[%clk 0:00:16]}  Ra3 {[%clk 0:00:58]} 57. Rd2 {[%clk 0:00:16]}  Ra1 {[%clk 0:00:58]} 58. Ke3 {[%clk 0:00:13]}  Ra3+ {[%clk 0:00:58]} 59. Ke4 {[%clk 0:00:11]}  Ra4+ {[%clk 0:00:59]} 60. Rd4 {[%clk 0:00:12]}  Ra5 {[%clk 0:00:57]} 61. Kf4 {[%clk 0:00:10]}  Ra3 {[%clk 0:00:57]} 62. Rb4 {[%clk 0:00:08]}  Rc3 {[%clk 0:00:57]} 63. Re4 {[%clk 0:00:08]}  Ra3 {[%clk 0:00:57]} 64. Rb4 {[%clk 0:00:08]}  Ra1 {[%clk 0:00:57]} 65. g4 {[%clk 0:00:08]}  hxg4 {[%clk 0:00:56]} 66. fxg4 {[%clk 0:00:08]}  Ra5 {[%clk 0:00:55]} 67. Rc4 {[%clk 0:00:08]}  Rb5 {[%clk 0:00:55]} 68. Ra4 {[%clk 0:00:08]}  Rc5 {[%clk 0:00:55]} 69. Re4 {[%clk 0:00:08]}  Ra5 {[%clk 0:00:55]} 70. Rd4 {[%clk 0:00:06]}  Rb5 {[%clk 0:00:56]} 71. Rd3 {[%clk 0:00:05]}  Rb4+ {[%clk 0:00:56]} 72. Kg3 {[%clk 0:00:05]}  Ra4 {[%clk 0:00:56]} 73. Rf3 {[%clk 0:00:06]}  Rb4 {[%clk 0:00:56]} 74. Rf4 {[%clk 0:00:05]}  Rb1 {[%clk 0:00:55]} 75. h5 {[%clk 0:00:05]}  gxh5 {[%clk 0:00:54]} 76. gxh5 {[%clk 0:00:06]}  Rh1 {[%clk 0:00:54]} 77. Kg4 {[%clk 0:00:06]}  Rg1+ {[%clk 0:00:53]} 78. Kh4 {[%clk 0:00:06]}  Rh1+ {[%clk 0:00:53]} 79. Kg5 {[%clk 0:00:07]}  f6+ {[%clk 0:00:50]} 80. Kg4 {[%clk 0:00:07]}  Rg1+ {[%clk 0:00:50]} 81. Kf5 {[%clk 0:00:07]}  Rg5+ {[%clk 0:00:49]} 82. Ke4 {[%clk 0:00:07]}  Rxh5 {[%clk 0:00:49]} 83. Kf3 {[%clk 0:00:08]}  Kg6 {[%clk 0:00:47]} 84. Ra4 {[%clk 0:00:07]}  Rc5 {[%clk 0:00:47]} 85. Ra3 {[%clk 0:00:06]}  Kg5 {[%clk 0:00:46]} 86. Rb3 {[%clk 0:00:06]}  Rc4 {[%clk 0:00:46]} 87. Rb8 {[%clk 0:00:05]}  Kf5 {[%clk 0:00:46]} 88. Rb5+ {[%clk 0:00:06]}  Kg6 {[%clk 0:00:46]} 89. Rd5 {[%clk 0:00:05]}  Rc3+ {[%clk 0:00:45]} 90. Kf4 {[%clk 0:00:06]}  Ra3 {[%clk 0:00:45]} 91. Rb5 {[%clk 0:00:06]}  Ra4+ {[%clk 0:00:46]} 92. Kf3 {[%clk 0:00:06]}  f5 {[%clk 0:00:46]} 93. Rb8 {[%clk 0:00:06]}  Kf6 {[%clk 0:00:44]} 94. Rf8+ {[%clk 0:00:06]}  Ke5 {[%clk 0:00:45]} 95. Re8+ {[%clk 0:00:06]}  Kf6 {[%clk 0:00:46]} 96. Rf8+ {[%clk 0:00:07]}  Ke6 {[%clk 0:00:46]} 97. Ke3 {[%clk 0:00:06]}  Ra1 {[%clk 0:00:45]} 98. Kf4 {[%clk 0:00:05]}  Rf1+ {[%clk 0:00:44]} 99. Ke3 {[%clk 0:00:05]}  Ke5 {[%clk 0:00:44]} 100. Re8+ {[%clk 0:00:05]}  Kf6 {[%clk 0:00:44]} 101. Ke2 {[%clk 0:00:05]}  Ra1 {[%clk 0:00:43]} 102. Kf3 {[%clk 0:00:05]}  Ra3+ {[%clk 0:00:43]} 103. Kf4 {[%clk 0:00:05]}  Ra4+ {[%clk 0:00:43]} 104. Kf3 {[%clk 0:00:06]}  Kf7 {[%clk 0:00:42]} 105. Rb8 {[%clk 0:00:05]}  Kg6 {[%clk 0:00:41]} 106. Rg8+ {[%clk 0:00:05]}  Kf6 {[%clk 0:00:41]} 107. Ke3 {[%clk 0:00:04]}  Ra6 {[%clk 0:00:38]} 108. Kf4 {[%clk 0:00:04]}  Ra4+ {[%clk 0:00:38]} 109. Kf3 {[%clk 0:00:04]}  Ra1 {[%clk 0:00:37]} 110. Rf8+ {[%clk 0:00:04]}  Ke5 {[%clk 0:00:38]} 111. Re8+ {[%clk 0:00:05]}  Kd6 {[%clk 0:00:38]} 112. Re2 {[%clk 0:00:04]}  Ra4 {[%clk 0:00:35]} 113. Re8 {[%clk 0:00:04]}  Ra3+ {[%clk 0:00:34]} 114. Kf4 {[%clk 0:00:04]}  Ra5 {[%clk 0:00:34]} 115. Re1 {[%clk 0:00:04]}  Kd7 {[%clk 0:00:31]} 116. Kg5 {[%clk 0:00:04]}  Kd6 {[%clk 0:00:31]} 117. Kf6 {[%clk 0:00:04]}  Kd7 {[%clk 0:00:29]} 118. Rd1+ {[%clk 0:00:04]}  Kc7 {[%clk 0:00:28]} 119. Ke6 {[%clk 0:00:04]}  f4 {[%clk 0:00:27]} 120. Rd4 {[%clk 0:00:03]}  f3 {[%clk 0:00:24]} 121. Rc4+ {[%clk 0:00:04]}  Kd8 {[%clk 0:00:23]} 122. Rd4+ {[%clk 0:00:03]}  Kc7 {[%clk 0:00:23]} 123. Rc4+ {[%clk 0:00:03]}  Kd8 {[%clk 0:00:23]} 124. Rf4 {[%clk 0:00:04]}  Ra3 {[%clk 0:00:22]} 125. Kd6 {[%clk 0:00:04]}  Ke8 {[%clk 0:00:21]} 126. Ke5 {[%clk 0:00:03]}  Ke7 {[%clk 0:00:21]} 127. Ke4 {[%clk 0:00:03]}  Ra4+ {[%clk 0:00:20]} 128. Kxf3 {[%clk 0:00:03]}  Rxf4+ {[%clk 0:00:20]} 129. Kxf4 {[%clk 0:00:04]} 1/2-1/2


[Site "https://www.chess.com"]

[Event "Titled Tuesday Blitz August 15 Early 2023"]
[White "Ordekalog"]
[Black "Bryakin, Mikhail"]
[BlackFideId "4165314"]
[WhiteElo "2521"]
[BlackElo "2718"]
[Result "0-1"]
[Round "4"]
[TimeControl "180+1"]
[Date "2023.08.15"]
[WhiteClock "0:00:21"]
[BlackClock "0:01:37"]
[Board "71"]

1. d4 {[%clk 0:03:00]}  g6 {[%clk 0:02:57]} 2. Nf3 {[%clk 0:02:57]}  Bg7 {[%clk 0:02:58]} 3. e3 {[%clk 0:02:56]}  f5 {[%clk 0:02:56]} 4. c3 {[%clk 0:02:54]}  Nf6 {[%clk 0:02:57]} 5. Qb3 {[%clk 0:02:54]}  e6 {[%clk 0:02:55]} 6. Bd3 {[%clk 0:02:54]}  b6 {[%clk 0:02:54]} 7. O-O {[%clk 0:02:53]}  Bb7 {[%clk 0:02:55]} 8. Na3 {[%clk 0:02:54]}  O-O {[%clk 0:02:55]} 9. Ne5 {[%clk 0:02:51]}  Qe7 {[%clk 0:02:55]} 10. Nb5 {[%clk 0:02:51]}  d6 {[%clk 0:02:52]} 11. Nf3 {[%clk 0:02:50]}  a6 {[%clk 0:02:51]} 12. Na3 {[%clk 0:02:40]}  Ne4 {[%clk 0:02:48]} 13. Nc4 {[%clk 0:02:37]}  Nd7 {[%clk 0:02:48]} 14. Na5 {[%clk 0:02:31]}  Ndc5 {[%clk 0:02:10]} 15. dxc5 {[%clk 0:02:29]}  Nxc5 {[%clk 0:02:11]} 16. Nxb7 {[%clk 0:02:13]}  Nxb3 {[%clk 0:02:10]} 17. axb3 {[%clk 0:02:14]}  Ra7 {[%clk 0:02:00]} 18. Bxa6 {[%clk 0:02:03]}  Rfa8 {[%clk 0:01:56]} 19. Na5 {[%clk 0:01:35]}  Rxa6 {[%clk 0:01:52]} 20. Nc6 {[%clk 0:01:35]}  Qe8 {[%clk 0:01:53]} 21. Rxa6 {[%clk 0:01:35]}  Rxa6 {[%clk 0:01:54]} 22. Nb4 {[%clk 0:01:35]}  Ra1 {[%clk 0:01:54]} 23. Nc2 {[%clk 0:01:31]}  Ra8 {[%clk 0:01:53]} 24. Nfd4 {[%clk 0:01:28]}  c5 {[%clk 0:01:52]} 25. Nf3 {[%clk 0:01:26]}  Qb5 {[%clk 0:01:53]} 26. b4 {[%clk 0:01:24]}  Qe2 {[%clk 0:01:53]} 27. Nd2 {[%clk 0:01:22]}  Qd3 {[%clk 0:01:48]} 28. Ne1 {[%clk 0:01:21]}  Qb5 {[%clk 0:01:47]} 29. bxc5 {[%clk 0:01:19]}  bxc5 {[%clk 0:01:47]} 30. Nc2 {[%clk 0:01:20]}  Qd3 {[%clk 0:01:46]} 31. Ne1 {[%clk 0:01:20]}  Qe2 {[%clk 0:01:47]} 32. Nc2 {[%clk 0:01:21]}  h5 {[%clk 0:01:47]} 33. h4 {[%clk 0:01:20]}  Bf6 {[%clk 0:01:46]} 34. g3 {[%clk 0:01:21]}  g5 {[%clk 0:01:47]} 35. hxg5 {[%clk 0:01:20]}  Bxg5 {[%clk 0:01:48]} 36. Re1 {[%clk 0:01:20]}  Qd3 {[%clk 0:01:47]} 37. Na3 {[%clk 0:01:21]}  h4 {[%clk 0:01:46]} 38. gxh4 {[%clk 0:01:20]}  Bxh4 {[%clk 0:01:47]} 39. Nf3 {[%clk 0:01:20]}  Kf7 {[%clk 0:01:40]} 40. Nxh4 {[%clk 0:01:19]}  Rg8+ {[%clk 0:01:41]} 41. Kh2 {[%clk 0:01:13]}  Qe4 {[%clk 0:01:41]} 42. f4 {[%clk 0:01:12]}  Rg4 {[%clk 0:01:36]} 43. Kh3 {[%clk 0:00:21]}  Qa8 {[%clk 0:01:37]} 0-1


[Site "https://www.chess.com"]

[Event "Titled Tuesday Blitz August 15 Early 2023"]
[White "Akobian, Varuzhan"]
[Black "Tikhonov, Viacheslav"]
[WhiteFideId "13300580"]
[BlackFideId "44196407"]
[WhiteElo "2716"]
[BlackElo "2516"]
[Result "1-0"]
[Round "4"]
[TimeControl "180+1"]
[Date "2023.08.15"]
[WhiteClock "0:00:07"]
[BlackClock "0:00:19"]
[Board "73"]

1. d4 {[%clk 0:03:00]}  d5 {[%clk 0:02:58]} 2. c4 {[%clk 0:03:00]}  e6 {[%clk 0:02:58]} 3. Nc3 {[%clk 0:03:00]}  c5 {[%clk 0:02:57]} 4. cxd5 {[%clk 0:03:00]}  exd5 {[%clk 0:02:58]} 5. Nf3 {[%clk 0:02:59]}  Nc6 {[%clk 0:02:56]} 6. g3 {[%clk 0:02:59]}  Nf6 {[%clk 0:02:55]} 7. Bg2 {[%clk 0:03:00]}  cxd4 {[%clk 0:02:56]} 8. Nxd4 {[%clk 0:02:59]}  Bc5 {[%clk 0:02:56]} 9. Nb3 {[%clk 0:02:58]}  Bb6 {[%clk 0:02:56]} 10. O-O {[%clk 0:02:58]}  d4 {[%clk 0:02:56]} 11. Na4 {[%clk 0:02:58]}  O-O {[%clk 0:02:56]} 12. Bg5 {[%clk 0:02:53]}  Re8 {[%clk 0:02:56]} 13. Nxb6 {[%clk 0:02:47]}  axb6 {[%clk 0:02:55]} 14. e3 {[%clk 0:02:47]}  d3 {[%clk 0:02:48]} 15. Qd2 {[%clk 0:02:33]}  Bf5 {[%clk 0:02:35]} 16. Rfc1 {[%clk 0:02:24]}  Qd6 {[%clk 0:02:27]} 17. f3 {[%clk 0:01:50]}  Be6 {[%clk 0:02:09]} 18. Bxf6 {[%clk 0:01:48]}  gxf6 {[%clk 0:02:10]} 19. Rc3 {[%clk 0:01:45]}  Nb4 {[%clk 0:01:47]} 20. a3 {[%clk 0:01:43]}  Nc2 {[%clk 0:01:44]} 21. Rxd3 {[%clk 0:01:33]}  Qxd3 {[%clk 0:01:09]} 22. Qxd3 {[%clk 0:01:32]}  Bxb3 {[%clk 0:01:01]} 23. Rc1 {[%clk 0:00:38]}  Rxe3 {[%clk 0:00:56]} 24. Qd2 {[%clk 0:00:35]}  Rae8 {[%clk 0:00:50]} 25. Rxc2 {[%clk 0:00:35]}  Re1+ {[%clk 0:00:50]} 26. Kf2 {[%clk 0:00:35]}  Bxc2 {[%clk 0:00:48]} 27. Qxc2 {[%clk 0:00:30]}  Kg7 {[%clk 0:00:44]} 28. f4 {[%clk 0:00:26]}  R1e7 {[%clk 0:00:43]} 29. Bf3 {[%clk 0:00:21]}  Rd8 {[%clk 0:00:43]} 30. Qc3 {[%clk 0:00:20]}  Red7 {[%clk 0:00:43]} 31. g4 {[%clk 0:00:20]}  Rd2+ {[%clk 0:00:43]} 32. Ke3 {[%clk 0:00:18]}  Rxh2 {[%clk 0:00:42]} 33. g5 {[%clk 0:00:18]}  Rd6 {[%clk 0:00:40]} 34. gxf6+ {[%clk 0:00:17]}  Rxf6 {[%clk 0:00:40]} 35. f5 {[%clk 0:00:13]}  Rh6 {[%clk 0:00:28]} 36. Kf4 {[%clk 0:00:11]}  Kf8 {[%clk 0:00:29]} 37. Qc8+ {[%clk 0:00:10]}  Kg7 {[%clk 0:00:28]} 38. Qxb7 {[%clk 0:00:10]}  Rd6 {[%clk 0:00:26]} 39. Bd5 {[%clk 0:00:09]}  Rhf6 {[%clk 0:00:25]} 40. Ke5 {[%clk 0:00:09]}  h5 {[%clk 0:00:24]} 41. Qe7 {[%clk 0:00:09]}  h4 {[%clk 0:00:20]} 42. Qxd6 {[%clk 0:00:09]}  Rxd6 {[%clk 0:00:18]} 43. Kxd6 {[%clk 0:00:09]}  Kf6 {[%clk 0:00:19]} 44. Kc6 {[%clk 0:00:09]}  Kxf5 {[%clk 0:00:19]} 45. Bxf7 {[%clk 0:00:09]}  Ke5 {[%clk 0:00:20]} 46. Kxb6 {[%clk 0:00:07]}  h3 {[%clk 0:00:20]} 47. Be8 {[%clk 0:00:07]}  h2 {[%clk 0:00:20]} 48. Bc6 {[%clk 0:00:08]}  Kd6 {[%clk 0:00:21]} 49. a4 {[%clk 0:00:07]}  h1=Q {[%clk 0:00:19]} 50. Bxh1 {[%clk 0:00:07]} 1-0


[Site "https://www.chess.com"]